{"text_format":"2","workbook":"xlsx","n_sheets":9,"sheets":["Общие сведения","Аффилированные организации","Показатели","Аутсорсинг учетных функций","Технический аудит и консалтинг","МСФО","ESG","Бланк подтверждения","Бланк подтверждения (ТАиК)"],"not_rendered":{"charts":0,"images":1,"macros":0,"external_links":0,"defined_names":0,"comments":4,"pivot_tables":0},"unopened":[],"bounds":{"document_bytes":16777216,"sheet_cells":100000,"run_cost":"one","rows_first":2000,"rows_last":500,"rows_between":2000,"halvings":0,"cell_chars":16384,"cell_head_chars":4096},"cells_cut":0,"cells_raw":0,"read":"whole","date_system":"1900"}

{"sheet":"Общие сведения","index":0,"n_rows":41,"n_cols":4,"rows_kept":41,"cut":false,"hidden":false,"merged":[[40,0,40,3],[28,0,28,1],[35,0,35,1],[35,2,35,3],[29,0,29,1],[34,0,34,3],[30,0,31,1],[36,0,39,1],[32,0,33,0],[26,0,27,1],[0,0,0,3],[2,0,2,3],[25,0,25,3],[1,0,1,3],[12,0,15,0],[16,0,17,1],[23,0,24,1],[3,2,15,3],[22,0,22,1],[18,0,18,3],[19,0,20,1],[21,0,21,1]]}
["Анкета RAEX для участия в ежегодных рэнкингах \n\"Российский аудит\", \"Российский консалтинг\",\n\"Аутсорсинг учётных функций\", \"Технический аудит и консалтинг\"."]
["Пояснения к пунктам с примечанием (*) смотрите в инструкции к анкете (файл instruct.doc)."]
[]
["Наименование головной аудиторской организации \n(в кавычках с указанием организационно-правовой формы)."]
["ИНН организации."]
["Фактический адрес организации."]
["Юридический адрес организации."]
["Адрес организации (для курьерской службы)."]
["Номер телефона (с указанием городского кода)."]
["Адрес электронной почты."]
["Адрес интернет-сайта."]
["Международная аудиторская или консалтинговая ассоциация, или объединение, членом которой являются компании группы."]
["ФИО и должность руководителя головной организации.","ФИО"]
[]
[null,"Должность"]
[]
["1. Число аффилированных / зависимых лиц (осуществляющих аудиторскую и консалтинговую деятельность) в группе / в сети, с учётом головной аудиторской или управляющей компании.",null,"На 31.12.2024","На 31.12.2025"]
[]
[]
["2. Численность всех сотрудников в компаниях группы (указывается исходя из форм №2-аудит у аудиторских компаний и форм расчётов по страховым взносам у консалтинговых компаний), включая головную компанию.",null,"За 2024 год","За 2025 год"]
[]
["2.1. Число специалистов, участвующих в аудиторских и консалтинговых проектах, обеспечивших суммарную выручку от аудита и консалтинга. Показатель приводится исходя из данных в пункте 2. Могут учитываться специалисты, работающие по совместительству и ГПХ."]
["2.2. Из них специалисты (консультанты), участвующие в консалтинговых проектах, обеспечившие выручку от консалтинговых услуг (сведения для рэнкинга \"Российский консалтинг\")."]
["2.3. Численность аудиторов во всех аудиторских компаниях, входящих в группу (на 31 декабря, по форме №2-аудит).",null,"На 31.12.2024 г.","На 31.12.2025 г."]
[]
[]
["3.* Общая выручка головной организации и аффилированных лиц от осуществления всех видов деятельности (без учёта НДС! Согласно формам №2-аудит аудиторских компаний и формам №2 бухгалтерской отчётности или деклараций консалтинговых компаний).",null,"За 2024 год","За 2025 год"]
[null,null,null,{"$f":"Показатели!AF31","v":0}]
["3.1*. Суммарная выручка группы (головной организации и аффилированных лиц), полученная от услуг аудита и консалтинга (в т.ч. от услуг, связанных с аудиторской деятельностью — у аудиторских компаний по форме №2-аудит). Показатель приводится без НДС, исключая внутригрупповой доход в пункте 3.3.",null,null,{"$f":"Показатели!AF29","v":0}]
["3.2*. Суммарная выручка группы (головной организации и аффилированных лиц), полученная от предоставления консалтинговых услуг (в т.ч. от услуг, связанных с аудиторской деятельностью — у аудиторских компаний по форме №2-аудит), исключая выручку от обязательного и инициативного аудита, а также сопутствующих аудиту услуг и внутригрупповой доход (пункт 3.3.).",null,null,{"$f":"Показатели!AF29-Показатели!AF6","v":0}]
["3.3*. Внутригрупповой доход: оборот от операций между компаниями, входящими в группу. Этот показатель не может учитываться при расчёте дохода от аудита и консалтинга, указанного в пунктах 3.1. и 3.2.",null,"За 2024 год","За 2025 год"]
[]
["3.4. Суммарная выручка от КОНСАЛТИНГА за первые три месяца 2026, 2025 и 2024 гг. Информация не разглашается и запрашивается только для исследования рынка консалтинга.","3 мес. 2024 года","3 мес. 2025 года","3 мес. 2026 года"]
[]
[]
["Пожалуйста, назовите из вашей практики организации, которые в 2025 году в мероприятиях, связанных с отбором компаний для работ по аудиту и / или консалтингу (в том числе аутсорсинг, оценка и т.д.), одним из требований к подрядчикам указывали участие в рэнкингах, составляемых рейтинговым агентством RAEX (ООО \"РАЭКС-Аналитика\")."]
["Должность, ФИО и контактная информация сотрудника для взаимодействия в рамках рэнкингов.",null,"Должность","ФИО"]
[]
[null,null,"E-mail","Номер телефона"]
[]
["Пожалуйста, перейдите к заполнению следующего листа"]

{"sheet":"Аффилированные организации","index":1,"n_rows":4,"n_cols":7,"rows_kept":4,"cut":false,"hidden":false,"merged":[[0,0,0,6],[1,0,1,6],[2,0,2,6]]}
["Этот лист является обязательным для заполнения.\nПояснения смотрите в инструкции к анкете в файле instruct.doc."]
["Укажите зависимые и аффилированные компании входящие в группу, осуществляющие аудиторскую и консалтинговую деятельность. Приведите организации по одной в каждой строке, указывая название организации, вид деятельности, наименование СРО, ИНН, город местонахождения и признак аффилированности."]
[" После того как эта таблица будет заполнена, пожалуйста, перейдите к заполнению следующего листа"]
["№","Наименование организации","Вид деятельности","Название СРО","ИНН","Город","Признак аффилированности\n(см. файл instuct.doc или методику проекта)"]

{"sheet":"Показатели","index":2,"n_rows":31,"n_cols":32,"rows_kept":31,"cut":false,"hidden":false,"merged":[[22,30,22,31],[24,30,24,31],[26,30,26,31],[29,1,29,29],[30,1,30,29],[20,30,20,31],[0,0,0,31],[1,0,1,31],[2,0,2,31],[3,0,3,31],[6,30,6,31],[8,30,8,31],[10,30,10,31],[12,30,12,31],[14,30,14,31],[16,30,16,31],[18,30,18,31]]}
["Этот лист является обязательным для заполнения. Пояснения смотрите в инструкции к анкете в файле instruct.doc"]
["Для отражения опыта работы группы, пожалуйста, укажите в соответствующих ячейках таблицы объём выручки от услуг аудита и консалтинга, оказанных предприятиям различных отраслей экономики в 2025 году. Выручка приводится в рублях без округления и без учёта НДС. Результат в строке \"Итого по всем видам деятельности\" (ячейка AE31) равен 100%. Если структурирование выручки по отраслям затруднительно, то допускается указание суммарной выручки по направлениям услуг в графе \"Другие отрасли и сферы экономики\"."]
["Приведите, пожалуйста, в соответствующих ячейках таблицы примеры крупнейших компаний-клиентов (1-3), которым в 2025 году оказывалась рассматриваемая услуга."]
[" После того как эта таблица будет заполнена, пожалуйста, перейдите к заполнению следующего листа"]
[" Виды услуг / отрасли экономики","Агропромышленный\nкомплекс","Легкая промышленность","Лесная,\nдеревообрабатывающая и\n целлюлозно-бумажная\n промышленность","Машиностроение","Металлургический комплекс\n(в т.ч. угольная\n промышленность)","Нефтяная и нефтегазовая\nпромышленность","Пищевая промышленность\n(в т.ч. общественное питание)","Промышленность\nдрагоценных металлов и алмазов","Промышленность\nстроительных материалов","Фармацевтика","Химический комплекс\n(в т.ч. нефтехимическая\nпромышленность)","Электроэнергетика","Строительство и девелопмент","Торговля","Транспорт","Связь и телекоммуникации","Банки","Страховые компании","Биржи и Инвестиционные институты","Лизинговые компании","НПФ","Государственное управление","ЖКХ","Здравоохранение","ИТ","Образование","СМИ","Полиграфическая\nпромышленность","Другие отрасли и сферы экономики","Доля в суммарной выручке (%)","Всего по видам услуг (руб.)"]
["Аудит (выручка, руб.)",{"$nulls":29},{"$f":"IF(AF31=0,\"\",AF6/AF31)","v":""},{"$f":"SUM(B6:AD6)","v":0}]
["примеры клиентов"]
["Консалтинг в области стратегического планирования и организационного развития (выручка, руб.)",{"$nulls":29},{"$f":"IF(AF31=0,\"\",AF8/AF31)","v":""},{"$f":"SUM(B8:AD8)","v":0}]
["примеры клиентов"]
["Консалтинг в области финансового управления (аутсорсинг функций учёта и бухгалтерские услуги, бюджетирование, планирование издержек, контроль рисков, разработка бизнес-планов и т.д.) (выручка, руб.)",{"$nulls":29},{"$f":"IF(AF31=0,\"\",AF10/AF31)","v":""},{"$f":"SUM(B10:AD10)","v":0}]
["примеры клиентов"]
["Налоговый консалтинг (консультирование по вопросам налогообложения, ведение налогового учета, налоговая экспертиза и т.д.) (выручка, руб.)",{"$nulls":29},{"$f":"IF(AF31=0,\"\",AF12/AF31)","v":""},{"$f":"SUM(B12:AD12)","v":0}]
["примеры клиентов"]
["Консалтинг в области управления персоналом (без учёта подбора персонала) (выручка, руб.)",{"$nulls":29},{"$f":"IF(AF31=0,\"\",AF14/AF31)","v":""},{"$f":"SUM(B14:AD14)","v":0}]
["примеры клиентов"]
["Консалтинг в области организации производства товаров и услуг (технологический и ценовой аудит, строительный консалтинг и экспертиза, разработка и внедрение технологий; НИОКР;  консультирование по вопросам управления производством; логистика; контроль качества) (выручка, руб.)",{"$nulls":29},{"$f":"IF(AF31=0,\"\",AF16/AF31)","v":""},{"$f":"SUM(B16:AD16)","v":0}]
["примеры клиентов"]
["Консалтинг в области маркетинга и отношений с общественностью (выручка, руб.)",{"$nulls":29},{"$f":"IF(AF31=0,\"\",AF18/AF31)","v":""},{"$f":"SUM(B18:AD18)","v":0}]
["примеры клиентов"]
["ИТ-консалтинг: управленческое консультирование (выручка, руб.)",{"$nulls":29},{"$f":"IF(AF31=0,\"\",AF20/AF31)","v":""},{"$f":"SUM(B20:AD20)","v":0}]
["примеры клиентов"]
["ИТ-консалтинг: разработка и системная интеграция (без учёта стоимости оборудования и лицензий ПО, технических и пуско-наладочных работ, сервисного обслуживания) (выручка, руб.)",{"$nulls":29},{"$f":"IF(AF31=0,\"\",AF22/AF31)","v":""},{"$f":"SUM(B22:AD22)","v":0}]
["примеры клиентов"]
["Юридический консалтинг (выручка, руб.)",{"$nulls":29},{"$f":"IF(AF31=0,\"\",AF24/AF31)","v":""},{"$f":"SUM(B24:AD24)","v":0}]
["примеры клиентов"]
["Оценочная деятельность (выручка, руб.)",{"$nulls":29},{"$f":"IF(AF31=0,\"\",AF26/AF31)","v":""},{"$f":"SUM(B26:AD26)","v":0}]
["примеры клиентов"]
["Прочие консалтинговые услуги (выручка, руб.) (пожалуйста, перечислите в этой ячейке какие именно услуги были оказаны)",{"$nulls":29},{"$f":"IF(AF31=0,\"\",AF28/AF31)","v":""},{"$f":"SUM(B28:AD28)","v":0}]
["ИТОГО (общая выручка от услуг аудита и консалтинга):",{"$f":"SUM(B6:B28)","v":0},{"$f":"SUM(C6:C28)","v":0},0,0,0,0,0,0,0,0,0,0,0,0,0,0,0,0,0,0,0,0,0,0,0,0,0,0,0,{"$f":"SUM(AE6:AE28)","v":0},{"$f":"SUM(AF6:AF28)","v":0}]
["Другие виды деятельности (выручка, руб.)",{"$nulls":29},{"$f":"IF(AF31=0,\"\",AF30/AF31)","v":""},{"$f":"SUM(B30:AD30)","v":0}]
["Итого по всем видам деятельности:",{"$nulls":29},{"$f":"SUM(AE29,AE30)","v":0},{"$f":"SUM(AF29,AF30)","v":0}]

{"sheet":"Аутсорсинг учетных функций","index":3,"n_rows":34,"n_cols":23,"rows_kept":34,"cut":false,"hidden":false,"merged":[[33,0,33,22],[14,18,14,22],[16,18,16,22],[20,18,20,22],[22,18,22,22],[29,0,29,22],[32,20,32,22],[24,18,24,22],[26,18,26,22],[28,18,28,22],[31,18,31,22],[11,8,12,8],[11,9,12,9],[11,22,12,22],[11,11,12,11],[11,20,12,20],[11,21,12,21],[11,13,12,13],[11,16,12,16],[11,17,12,17],[11,12,12,12],[11,14,12,14],[11,15,12,15],[11,10,12,10],[11,18,12,18],[11,19,12,19],[10,0,10,22],[11,0,12,0],[11,1,12,1],[4,0,5,17],[0,0,0,22],[1,0,2,17],[3,0,3,17],[8,0,9,17],[1,20,9,22],[6,0,7,17],[11,2,12,2],[11,3,12,3],[11,4,12,4],[11,5,12,5],[11,6,12,6],[11,7,12,7]]}
["Этот лист является обязательным для компаний, имеющих опыт предоставления услуг в области АУТСОРСИНГА УЧЁТНЫХ ФУНКЦИЙ и участвующих в рэнкингах по данному направлению. Пояснения смотрите в инструкции - instruct.doc и в методике - metod (outsource).doc."]
["Число компаний в группе, осуществляющих деятельность в области аутсорсинга учётных функций (с учётом головной компании).",{"$nulls":17},"На 31.12.2024","На 31.12.2025"]
[]
["Наименование компаний, предоставляющих услуги в области аутсорсинга учётных функций (с указанием организационно-правовой формы)."]
["Средняя численность специалистов, задействованных в предоставлении услуг в области аутсорсинга учётных функций (суммарные данные головной компании и аффилированных лиц, осуществляющих деятельность в области аутсорсинга учёта). Специалисты — это сотрудники, выполняющие работу для заказчиков (бухгалтеры, консультанты). Без учёта сотрудников сервисных служб компании (продажи, маркетинг, ИТ, бухгалтерия и т.д.).",{"$nulls":17},"За 2024 год","За 2025 год"]
[]
["Выручка (без учёта НДС) головной компании и аффилированных лиц, полученная от предоставления услуг аутсорсинга функций учёта.",{"$nulls":17},"За 2024 год","За 2025 год"]
[{"$nulls":19},{"$f":"T33","v":0}]
["Суммарная выручка за первые три месяца 2026 и 2025 гг. Информация запрашивается только для исследования динамики рынка.",{"$nulls":17},"3 мес. 2025 года","3 мес. 2026 года"]
[]
["Для более полного представления опыта работы, укажите в таблице выручку (без НДС) от услуг аутсорсинга учётных функций, оказанных предприятиям различных отраслей экономики в 2025 году. Приведите примеры крупнейших клиентов (2-3 клиента), которым Ваша компания / группа предоставляла услуги аутсорсинга учётных функций за исследуемый период. Если структурирование выручки по отраслям экономики затруднительно, то допускается указание суммарной выручки по направлениям аутсорсинга в графе \"Другие отрасли и сферы экономики\"."]
["Виды услуг","Машиностроение и металлообработка","Металлургический\nкомплекс (в т.ч. угольная промышленность)","Нефтяная и\nнефтегазовая\nпромышленность","Пищевая\nпромышленность","Промышленность\nстроительных\nматериалов","Химическая\n промышленность","Электроэнергетика","Строительство","Торговля","Транспорт","Связь","Финансовые институты","Государственное\nуправление","ЖКХ","Здравоохранение","Образование","Другие отрасли\nи сферы экономики","Доля в общей выручке от аутсорсинга учётных функций (%)","Всего выручка (руб.)","Всего клиентов","Примерная доля выручки от оказания услуг иностранным компаниям, работающим на территории РФ, в общей выручке (%)","Количество иностранных клиентов"]
[]
["Бухгалтерский и налоговый учёт",{"$nulls":17},{"$f":"IF(T33=0,\"\",T14/T33)","v":""},{"$f":"B14+C14+D14+E14+F14+G14+H14+I14+J14+K14+L14+M14+N14+O14+P14+Q14+R14","v":0}]
["примеры клиентов"]
["Расчёт заработной платы",{"$nulls":17},{"$f":"IF(T33=0,\"\",T16/T33)","v":""},{"$f":"B16+C16+D16+E16+F16+G16+H16+I16+J16+K16+L16+M16+N16+O16+P16+Q16+R16","v":0}]
["примеры клиентов"]
["Подготовка бухгалтерской и налоговой отчётности (РСБУ)",{"$nulls":17},{"$f":"IF(T33=0,\"\",T18/T33)","v":""},{"$f":"B18+C18+D18+E18+F18+G18+H18+I18+J18+K18+L18+M18+N18+O18+P18+Q18+R18","v":0}]
["примеры клиентов"]
["Подготовка финансовой отчётности (МСФО, US GAAP)",{"$nulls":17},{"$f":"IF(T33=0,\"\",T20/T33)","v":""},{"$f":"B20+C20+D20+E20+F20+G20+H20+I20+J20+K20+L20+M20+N20+O20+P20+Q20+R20","v":0}]
["примеры клиентов"]
["Кадровый учёт и делопроизводство",{"$nulls":17},{"$f":"IF(T33=0,\"\",T22/T33)","v":""},{"$f":"B22+C22+D22+E22+F22+G22+H22+I22+J22+K22+L22+M22+N22+O22+P22+Q22+R22","v":0}]
["примеры клиентов"]
["Юридическое сопровождение бизнеса",{"$nulls":17},{"$f":"IF(T33=0,\"\",T24/T33)","v":""},{"$f":"B24+C24+D24+E24+F24+G24+H24+I24+J24+K24+L24+M24+N24+O24+P24+Q24+R24","v":0}]
["примеры клиентов"]
["ИТ-аутсорсинг (в рамках договоров аутсорсинга учётных функций клиента)",{"$nulls":17},{"$f":"IF(T33=0,\"\",T26/T33)","v":""},{"$f":"B26+C26+D26+E26+F26+G26+H26+I26+J26+K26+L26+M26+N26+O26+P26+Q26+R26","v":0}]
["примеры клиентов"]
["Подбор персонала (в рамках договоров аутсорсинга кадрового учёта)",{"$nulls":17},{"$f":"IF(T33=0,\"\",T28/T33)","v":""},{"$f":"B28+C28+D28+E28+F28+G28+H28+I28+J28+K28+L28+M28+N28+O28+P28+Q28+R28","v":0}]
["примеры клиентов"]
[]
["Другие виды услуг в рамках регулярного обслуживания по договорам аутсорсинга учётных функций",{"$nulls":17},{"$f":"IF(T33=0,\"\",T31/T33)","v":""},{"$f":"B31+C31+D31+E31+F31+G31+H31+I31+J31+K31+L31+M31+N31+O31+P31+Q31+R31","v":0}]
["примеры клиентов"]
["Итого, по аутсорсингу учётных функций:",{"$f":"B14+B16+B18+B20+B22+B24+B26+B28+B31","v":0},{"$f":"C14+C16+C18+C20+C22+C24+C26+C28+C31","v":0},0,0,0,0,0,0,0,0,0,0,0,0,0,0,0,{"$f":"SUM(S14:S31)","v":0},{"$f":"SUM(T14:T31)","v":0}]
["После того как эта таблица будет заполнена, пожалуйста, перейдите к заполнению следующего листа"]

{"sheet":"Технический аудит и консалтинг","index":4,"n_rows":29,"n_cols":25,"rows_kept":29,"cut":false,"hidden":false,"merged":[[28,0,28,24],[26,1,26,21],[26,24,27,24],[27,1,27,21],[0,0,0,24],[10,0,10,24],[23,22,23,24],[13,22,13,24],[17,22,17,24],[19,22,19,24],[21,22,21,24],[1,0,2,22],[3,0,3,22],[4,0,5,22],[6,0,7,22],[8,0,9,22]]}
["Этот лист является обязательным для компаний, имеющих опыт предоставления услуг в области ТЕХНИЧЕСКОГО АУДИТА И КОНСАЛТИНГА.\nПояснения смотрите в инструкции (instruct.doc)."]
["Число компаний в группе, осуществляющих деятельность в области технического аудита и консалтинга (с учётом головной компании).",{"$nulls":22},"На 31.12.2024","На 31.12.2025"]
[]
["Наименование компаний, осуществляющих деятельность в области технического аудита и консалтинга (с сокращённым указанием организационно-правовой формы)."]
["Средняя численность специалистов (суммарные данные головной организации и аффилированных лиц), задействованных в предоставлении услуг в области технического аудита и консалтинга. Без учёта сотрудников сервисных служб компании (продажи, маркетинг, ИТ, бухгалтерия и т.д.).",{"$nulls":22},"За 2024 год","За 2025 год"]
[]
["Выручка (без учёта НДС) головной компании и аффилированных лиц, полученная от предоставления услуг технического аудита и консалтинга.",{"$nulls":22},"За 2024 год","За 2025 год"]
[{"$nulls":24},{"$f":"X26","v":0}]
["Суммарная выручка за первые три месяца 2026 и 2025 гг. Информация запрашивается только для исследования динамики рынка.",{"$nulls":22},"3 мес. 2025 года","3 мес. 2026 года"]
[]
["Для более полного представления опыта работы, укажите в таблице выручку (без НДС), заработанную в результате предоставления услуг технического аудита и консалтинга предприятиям различных отраслей экономики в 2025 году. Приведите примеры крупнейших клиентов (2-3 клиента), которым Ваша компания / группа предоставляла услуги технического аудита и консалтинга за исследуемый период. Если структурирование выручки по отраслям экономики затруднительно, то допускается указание суммарной выручки по направлениям технического аудита и консалтинга в колонке \"Другие отрасли и сферы экономики\"."]
[" Виды услуг / отрасли экономики","АПК","Легкая промышленность","Лесная, деревообрабатывающая и\n целлюлозно-бумажная\n промышленность","Машиностроение","Металлургический комплекс\n(в т.ч. угольная\n промышленность)","Нефтяная и нефтегазовая\nпромышленность","Пищевая промышленность\n(в т.ч. общественное питание)","Промышленность\nдрагоценных металлов и алмазов","Промышленность\nстроительных материалов","Фармацевтика","Химический комплекс \n(в т.ч. нефтехимическая\nпромышленность)","Электроэнергетика","Строительство и девелопмент","Транспорт","Торговля","Связь и телекоммуникации","Государственное управление","Банки","ЖКХ","Полиграфическая\nпромышленность","Другие отрасли и сферы экономики","Доля в суммарной выручке (%)","Всего по видам услуг (руб.)","Всего клиентов за 2025 год"]
["Технический и ценовой аудит инвестиционных проектов и активов",{"$nulls":21},{"$f":"IF(X28=0,\"\",X13/X28)","v":""},{"$f":"SUM(B13:V13)","v":0}]
["примеры клиентов"]
["Строительный консалтинг и аудит",{"$nulls":21},{"$f":"IF(X28=0,\"\",X15/X28)","v":""},{"$f":"SUM(B15:V15)","v":0}]
["примеры клиентов"]
["Предварительное проектирование (инжиниринг)",{"$nulls":21},{"$f":"IF(X28=0,\"\",X17/X28)","v":""},{"$f":"SUM(B17:V17)","v":0}]
["примеры клиентов"]
["Энергетический аудит",{"$nulls":21},{"$f":"IF(X28=0,\"\",X19/X28)","v":""},{"$f":"SUM(B19:V19)","v":0}]
["примеры клиентов"]
["Консалтинг в области промышленной безопасности",{"$nulls":21},{"$f":"IF(X28=0,\"\",X21/X28)","v":""},{"$f":"SUM(B21:V21)","v":0}]
["примеры клиентов"]
["Консалтинг в области экологии",{"$nulls":21},{"$f":"IF(X28=0,\"\",X23/X28)","v":""},{"$f":"SUM(B23:V23)","v":0}]
["примеры клиентов"]
["Прочие услуги технического аудита и консалтинга (выручка, руб.) (перечислите, пожалуйста, их в данной ячейке через запятую)",{"$nulls":21},{"$f":"IF(X28=0,\"\",X25/X28)","v":""},{"$f":"SUM(B25:V25)","v":0}]
["ИТОГО (технический аудит и консалтинг):",{"$f":"B13+B15+B17+B19+B21+B23+B25","v":0},{"$f":"C13+C15+C17+C19+C21+C23+C25","v":0},0,0,0,0,0,0,0,0,0,0,0,0,0,0,0,0,0,0,0,{"$f":"SUM(W13:W25)","v":0},{"$f":"SUM(X13:X25)","v":0},{"$f":"SUM(Y13,Y15,Y17,Y19,Y21,Y23,Y25)","v":0}]
["Другие виды деятельности (выручка, руб.)",{"$nulls":21},{"$f":"IF(X28=0,\"\",X27/X28)","v":""},{"$f":"B27","v":0}]
["Итого по всем видам деятельности:",{"$nulls":21},{"$f":"SUM(W26,W27)","v":0},{"$f":"SUM(X26,X27)","v":0}]
["После того как эта таблица будет заполнена, пожалуйста, перейдите к заполнению следующего листа"]

{"sheet":"МСФО","index":5,"n_rows":27,"n_cols":19,"rows_kept":27,"cut":false,"hidden":false,"merged":[[16,0,16,18],[6,0,7,15],[8,0,8,18],[9,0,10,0],[9,1,9,3],[9,4,9,6],[9,7,9,9],[9,10,9,12],[9,13,9,15],[9,16,10,16],[9,17,10,17],[9,18,10,18],[0,0,0,18],[1,0,2,15],[1,18,3,18],[3,0,3,15],[4,0,5,15],[4,18,5,18]]}
["Таблица является обязательной к заполнению для компаний, имеющих опыт предоставления услуг в области МСФО. Пояснения смотрите в инструкции (instruct.doc)."]
["Число компаний в группе, осуществляющих деятельность в области МСФО (с учётом головной компании).",{"$nulls":15},"На 31.12.2024","На 31.12.2025"]
[]
["Наименование компаний, осуществляющих деятельность в области МСФО (с сокращённым указанием организационно-правовой формы)."]
["Средняя численность специалистов, задействованных в предоставлении услуг в области МСФО и обеспечивающих выручку от этих услуг: суммарные данные головной компании и аффилированных лиц, осуществляющих деятельность в области МСФО. Специалисты — это сотрудники, выполняющие работу для заказчиков. Без учёта сотрудников сервисных служб компании (бухгалтерия, ИТ, реклама, маркетинг и т.д.)",{"$nulls":15},"За 2024 год","За 2025 год"]
[]
["Выручка (без учёта НДС) головной компании и аффилированных / зависимых лиц, полученная от предоставления услуг в области МСФО.",{"$nulls":15},"За 2024 год","За 2025 год"]
[{"$nulls":17},{"$f":"S19","v":0}]
["Для более полного представления опыта работы по направлению МСФО, пожалуйста, укажите в таблице объём выручки (без НДС), заработанной в результате предоставления МСФО-услуг за 2025 год. Приведите примеры крупнейших клиентов (2-3 клиента), которым Ваша компания / группа предоставляла МСФО-услуги за исследуемый период."]
["Виды услуг","Банки",null,null,"Страховые компании",null,null,"Лизинговые компании",null,null,"НПФ, инвестиционные компании и другие участники финансового сектора",null,null,"Предприятия промышленности и нефинансового сектора",null,null,"Всего клиентов","Доля в суммарной выручке (%)","Всего выручка (руб.)"]
[null,"Выручка (руб.)","Кол-во клиентов","Примеры клиентов","Выручка (руб.)","Кол-во клиентов","Примеры клиентов","Выручка (руб.)","Кол-во клиентов","Примеры клиентов","Выручка (руб.)","Кол-во клиентов","Примеры клиентов","Выручка (руб.)","Кол-во клиентов","Примеры клиентов"]
["Аудит*",{"$nulls":15},{"$f":"SUM(C12,F12,I12,L12,O12)","v":0},{"$f":"IF(S19=0,\"\",S12/S19)","v":""},{"$f":"SUM(B12,E12,H12,K12,N12)","v":0}]
["Трансформация отчётности*",{"$nulls":15},{"$f":"SUM(C13,F13,I13,L13,O13)","v":0},{"$f":"IF(S19=0,\"\",S13/S19)","v":""},{"$f":"SUM(B13,E13,H13,K13,N13)","v":0}]
["Консалтинговые услуги",{"$nulls":15},0,{"$f":"IF(S19=0,\"\",S14/S19)","v":""},0]
["Обучение",{"$nulls":15},0,{"$f":"IF(S19=0,\"\",S15/S19)","v":""},0]
["Оценка",{"$nulls":15},0,{"$f":"IF(S19=0,\"\",S16/S19)","v":""},0]
[]
["Прочие МСФО-услуги (перечислите, пожалуйста, в данной ячейке такие услуги)",{"$nulls":15},0,{"$f":"IF(S19=0,\"\",S18/S19)","v":""},0]
["Итого:",{"$f":"SUM(B12,B13,B14,B15,B16,B18)","v":0},{"$f":"SUM(C12,C13,C14,C15,C16,C18)","v":0},null,{"$f":"SUM(E12,E13,E14,E15,E16,E18)","v":0},{"$f":"SUM(F12,F13,F14,F15,F16,F18)","v":0},null,{"$f":"SUM(H12,H13,H14,H15,H16,H18)","v":0},{"$f":"SUM(I12,I13,I14,I15,I16,I18)","v":0},null,{"$f":"SUM(K12,K13,K14,K15,K16,K18)","v":0},{"$f":"SUM(L12,L13,L14,L15,L16,L18)","v":0},null,{"$f":"SUM(N12,N13,N14,N15,N16,N18)","v":0},{"$f":"SUM(O12,O13,O14,O15,O16,O18)","v":0},null,null,{"$f":"SUM(R12:R18)","v":0},{"$f":"SUM(S12:S18)","v":0}]
{"$rows_empty":7}
[{"$nulls":18}," "]

{"sheet":"ESG","index":6,"n_rows":23,"n_cols":3,"rows_kept":23,"cut":false,"hidden":false,"merged":[[12,0,12,2],[21,0,21,2],[22,0,22,2],[23,0,23,2],[0,0,0,2],[2,0,3,0],[4,0,4,2],[5,0,6,0],[8,0,8,2],[9,0,10,0]]}
["Этот лист является обязательным для компаний, имеющих опыт предоставления услуг, связанных с аудитом и консалтингом в области ESG."]
["1. Наименование компании, осуществляющей деятельность в области ESG."]
["2. Средняя численность специалистов, обеспечивающих услуги ESG.","За 2024 год","За 2025 год"]
[]
[]
["3. Количество проектов, связанных с аудитом ESG-отчётности (число аудированных отчётов).","За 2024 год","За 2025 год"]
[]
["3.1. Объём выручки (без НДС), полученной от проведения аудита ESG-отчётности."]
[]
["4. Количество проектов, связанных с консалтингом в области ESG.","За 2024 год","За 2025 год"]
[]
["4.1. Объём выручки (без НДС), полученной от оказания консалтинговых услуг в области ESG."]
["В том числе:"]
["— ESG стратегии"]
["— Подготовка нефинансовой отчётности"]
["— Оценка ESG рисков"]
["— Поиск технологических инноваций для ESG трансформации"]
["— PR в сфере ESG"]
["— Исследования и сравнительный анализ конкурентов"]
["— Иное (укажите, пожалуйста, в этой строке какие именно услуги)"]
["Всего (консалтинг ESG)",{"$f":"SUM(B14:B20)","v":0},{"$f":"SUM(C14:C20)","v":0}]
[]
["5. Опрос. Какие консалтинговые услуги в области ESG пользовались в 2025 году наибольшим спросом? На Ваш взгляд, с чем это связано? Приведите, пожалуйста, ответы в ячейке ниже."]

{"sheet":"Бланк подтверждения","index":7,"n_rows":64,"n_cols":3,"rows_kept":64,"cut":false,"hidden":false,"merged":[[14,1,14,2],[15,1,15,2],[24,1,24,2],[63,0,63,1],[0,0,0,2],[2,0,2,2],[4,0,4,2],[5,0,5,2],[6,0,6,2],[13,1,13,2],[11,1,11,2],[12,1,12,2],[7,0,7,1],[8,0,8,2],[9,0,9,1],[10,1,10,2]]}
["Куда: RAEX (ООО \"РАЭКС-Аналитика\"), (495) 617-07-77, audit@raex-a.ru, http://www.raex-rr.com"]
[]
[{"$f":"\"От:  \"&'Общие сведения'!B4&\", \"&'Общие сведения'!B5&\", \"&'Общие сведения'!B9&\", \"&'Общие сведения'!B10&\", \"&'Общие сведения'!B11","v":"От:  , , , , "}]
[]
["БЛАНК ПОДТВЕРЖДЕНИЯ "]
["Настоящим подтверждаем достоверность данных, переданных в адрес ООО \"РАЭКС-Аналитика\", в т.ч.:"]
["выручка (нетто) от аудита и консалтинга за 2025 г.:"]
[{"$f":"'Общие сведения'!D29","v":0},null,"руб."]
["выручка (нетто) от консалтинга за 2025 г.:"]
[{"$f":"'Общие сведения'!D30","v":0},null,"руб."]
["Число компаний в группе",{"$f":"'Общие сведения'!D18","v":0}]
["Численность специалистов (средняя за год), оказывающих услуги аудита и консалтинга",{"$f":"'Общие сведения'!D22","v":0}]
["— из них специалисты-консультанты",{"$f":"'Общие сведения'!D23","v":0}]
["Численность аудиторов (по форме №2-аудит, на 31.12.2025)",{"$f":"'Общие сведения'!D25","v":0}]
["Численность специалистов в области МСФО (средняя за год)",{"$f":"МСФО!R6","v":0}]
["Численность специалистов в области аутсорсинга функций учёта (средняя за год)",{"$f":"'Аутсорсинг учетных функций'!T6","v":0}]
["Аудиторская деятельность (АУДИТ)","Доля","Выручка"]
["Аудит (обязательный, инициативный, РСБУ, МСФО, кроме нижеперечисленных направлений)",{"$f":"IF(C40=0,\"\",C18/C40)","v":""},{"$f":"Показатели!AF6-(Показатели!R6+Показатели!S6+Показатели!T6+Показатели!U6+Показатели!V6)","v":0}]
["Аудит банковских организаций (РСБУ, МСФО)",{"$f":"IF(C40=0,\"\",C19/C40)","v":""},{"$f":"Показатели!R6","v":0}]
["Аудит страховых организаций (РСБУ, МСФО)",{"$f":"IF(C40=0,\"\",C20/C40)","v":""},{"$f":"Показатели!S6","v":0}]
["Аудит бирж и инвестиционных институтов (РСБУ, МСФО)",{"$f":"IF(C40=0,\"\",C21/C40)","v":""},{"$f":"Показатели!T6","v":0}]
["Аудит лизинговых компаний (РСБУ, МСФО)",{"$f":"IF(C40=0,\"\",C22/C40)","v":""},{"$f":"Показатели!U6","v":0}]
["Аудит НПФ (РСБУ, МСФО)",{"$f":"IF(C40=0,\"\",C23/C40)","v":""},{"$f":"Показатели!V6","v":0}]
["Всего (АУДИТ):",{"$f":"SUM(B18:B23)","v":0},{"$f":"SUM(C18:C23)","v":0}]
["КОНСАЛТИНГ"]
["Стратегический консалтинг ",{"$f":"IF(C40=0,\"\",C26/C40)","v":""},{"$f":"Показатели!AF8","v":0}]
["Финансовый консалтинг (в т.ч. услуги по МСФО, кроме аудита; в т.ч. аутсорсинг учёта)",{"$f":"IF(C40=0,\"\",C27/C40)","v":""},{"$f":"Показатели!AF10","v":0}]
["Налоговый консалтинг ",{"$f":"IF(C40=0,\"\",C28/C40)","v":""},{"$f":"Показатели!AF12","v":0}]
["Управление персоналом (без учёта подбора персонала)",{"$f":"IF(C40=0,\"\",C29/C40)","v":""},{"$f":"Показатели!AF14","v":0}]
["Консалтинг в области производства услуг и товаров (в т.ч. технический аудит и консалтинг)",{"$f":"IF(C40=0,\"\",C30/C40)","v":""},{"$f":"Показатели!AF16","v":0}]
["Маркетинг и отношения с общественностью ",{"$f":"IF(C40=0,\"\",C31/C40)","v":""},{"$f":"Показатели!AF18","v":0}]
["ИТ-консалтинг (управленческое консультирование)",{"$f":"IF(C40=0,\"\",C32/C40)","v":""},{"$f":"Показатели!AF20","v":0}]
["ИТ-консалтинг (разработка и системная интеграция)",{"$f":"IF(C40=0,\"\",C33/C40)","v":""},{"$f":"Показатели!AF22","v":0}]
["Юридический консалтинг",{"$f":"IF(C40=0,\"\",C34/C40)","v":""},{"$f":"Показатели!AF24","v":0}]
["Оценочная деятельность (в т.ч. по МСФО)",{"$f":"IF(C40=0,\"\",C35/C40)","v":""},{"$f":"Показатели!AF26","v":0}]
["Прочие консалтинговые услуги",{"$f":"IF(C40=0,\"\",C36/C40)","v":""},{"$f":"Показатели!AF28","v":0}]
["Всего (КОНСАЛТИНГ):",{"$f":"SUM(B26:B36)","v":0},{"$f":"SUM(C26:C36)","v":0}]
["Итого (АУДИТ И КОНСАЛТИНГ):",{"$f":"B24+B37","v":0},{"$f":"C24+C37","v":0}]
["Другие виды деятельности",{"$f":"Показатели!AE30","v":""},{"$f":"Показатели!AF30","v":0}]
["Итого по всем видам деятельности :",{"$f":"SUM(B38:B39)","v":0},{"$f":"SUM(C38:C39)","v":0}]
["Услуги в области МСФО","Доля","Выручка"]
["Аудит",{"$f":"IF(C48=0,\"\",C42/C48)","v":""},{"$f":"МСФО!S12","v":0}]
["Трансформация отчетности",{"$f":"IF(C48=0,\"\",C43/C48)","v":""},{"$f":"МСФО!S13","v":0}]
["Консалтинг",{"$f":"IF(C48=0,\"\",C44/C48)","v":""},{"$f":"МСФО!S14","v":0}]
["Обучение",{"$f":"IF(C48=0,\"\",C45/C48)","v":""},{"$f":"МСФО!S15","v":0}]
["Оценка",{"$f":"IF(C48=0,\"\",C46/C48)","v":""},{"$f":"МСФО!S16","v":0}]
["Другие МСФО-услуги",{"$f":"IF(C48=0,\"\",C47/C48)","v":""},{"$f":"МСФО!S18","v":0}]
["Итого:",{"$f":"SUM(B42:B47)","v":0},{"$f":"SUM(C42:C47)","v":0}]
["Аутсорсинг учётных функций","Доля","Выручка"]
["Бухгалтерский и налоговый учёт",{"$f":"IF(C59=0,\"\",C50/C59)","v":""},{"$f":"'Аутсорсинг учетных функций'!T14","v":0}]
["Расчёт зарплат",{"$f":"IF(C59=0,\"\",C51/C59)","v":""},{"$f":"'Аутсорсинг учетных функций'!T16","v":0}]
["Подготовка бухгалтерской и налоговой отчётности (РСБУ)",{"$f":"IF(C59=0,\"\",C52/C59)","v":""},{"$f":"'Аутсорсинг учетных функций'!T18","v":0}]
["Подготовка финансовой отчетности (МСФО)",{"$f":"IF(C59=0,\"\",C53/C59)","v":""},{"$f":"'Аутсорсинг учетных функций'!T20","v":0}]
["Кадровый учет и делопроизводство",{"$f":"IF(C59=0,\"\",C54/C59)","v":""},{"$f":"'Аутсорсинг учетных функций'!T22","v":0}]
["Юридическое сопровождение бизнеса",{"$f":"IF(C59=0,\"\",C55/C59)","v":""},{"$f":"'Аутсорсинг учетных функций'!T24","v":0}]
["ИТ-аутсорсинг (в рамках договоров аутсорсинга учётных функций клиента)",{"$f":"IF(C59=0,\"\",C56/C59)","v":""},{"$f":"'Аутсорсинг учетных функций'!T26","v":0}]
["Подбор персонала (в рамках договоров аутсорсинга кадрового учёта)",{"$f":"IF(C59=0,\"\",C57/C59)","v":""},{"$f":"'Аутсорсинг учетных функций'!T28","v":0}]
["Другие виды аутсорсинга учёта",{"$f":"IF(C59=0,\"\",C58/C59)","v":""},{"$f":"'Аутсорсинг учетных функций'!T31","v":0}]
["Итого:",{"$f":"SUM(B50:B58)","v":0},{"$f":"SUM(C50:C58)","v":0}]
["Достоверность данных подтверждаю:"]
[{"$f":"'Общие сведения'!B16","v":0}]
[{"$f":"'Общие сведения'!B14","v":0}]
[]
["(подпись)",null,"(печать)"]

{"sheet":"Бланк подтверждения (ТАиК)","index":8,"n_rows":36,"n_cols":3,"rows_kept":36,"cut":false,"hidden":false,"merged":[[14,1,14,2],[15,1,15,2],[0,0,0,2],[3,0,3,2],[5,0,5,2],[10,0,10,2],[11,0,11,2]]}
["Куда: RAEX (ООО \"РАЭКС-Аналитика\"); (495) 617-07-77, audit@raex-a.ru, http://www.raex-rr.com"]
[]
[]
[{"$f":"\"От:  \"&'Общие сведения'!B4&\", \"&'Общие сведения'!B5&\", \"&'Общие сведения'!B9&\", \"&'Общие сведения'!B10&\", \"&'Общие сведения'!B11&\"\"","v":"От:  , , , , "}]
[]
["БЛАНК ПОДТВЕРЖДЕНИЯ "]
[]
[]
[]
[]
["Настоящим подтверждаем достоверность данных за 2025 год, переданных в адрес \nООО \"РАЭКС-Аналитика\", в том числе:"]
["в том числе:"]
[]
[]
["Число компаний в группе",{"$f":"'Технический аудит и консалтинг'!Y3","v":0}]
["Среднее число специалистов",{"$f":"'Технический аудит и консалтинг'!Y6","v":0}]
["Технический аудит и консалтинг","Доля","Выручка\n(2025 г., руб.)"]
["Технический и ценовой аудит инвестиционных проектов и активов",{"$f":"IF(C27=0,\"\",C18/C27)","v":""},{"$f":"'Технический аудит и консалтинг'!X13","v":0}]
["Строительный консалтинг и аудит",{"$f":"IF(C27=0,\"\",C19/C27)","v":""},{"$f":"'Технический аудит и консалтинг'!X15","v":0}]
["Предварительное проектирование",{"$f":"IF(C27=0,\"\",C20/C27)","v":""},{"$f":"'Технический аудит и консалтинг'!X17","v":0}]
["Энергетический аудит",{"$f":"IF(C27=0,\"\",C21/C27)","v":""},{"$f":"'Технический аудит и консалтинг'!X19","v":0}]
["Консалтинг в области промышленной безопасности",{"$f":"IF(C27=0,\"\",C22/C27)","v":""},{"$f":"'Технический аудит и консалтинг'!X21","v":0}]
["Консалтинг в области экологии",{"$f":"IF(C27=0,\"\",C23/C27)","v":""},{"$f":"'Технический аудит и консалтинг'!X23","v":0}]
["Прочие услуги технического аудита и консалтинга",{"$f":"IF(C27=0,\"\",C24/C27)","v":""},{"$f":"'Технический аудит и консалтинг'!X25","v":0}]
["Всего по услугам технического аудита и консалтинга:",{"$f":"SUM(B18:B24)","v":0},{"$f":"SUM(C18:C24)","v":0}]
["Другие виды деятельности",{"$f":"IF(C27=0,\"\",C26/C27)","v":""},{"$f":"'Технический аудит и консалтинг'!X27","v":0}]
["Итого по всем видам деятельности :",{"$f":"SUM(B25:B26)","v":0},{"$f":"SUM(C25:C26)","v":0}]
[]
[]
[]
["Достоверность данных подтверждаю:"]
[]
[{"$f":"'Общие сведения'!B16","v":0}]
[]
[{"$f":"'Общие сведения'!B14","v":0},"для"]
["(подпись)","печати"]